fUST/lending_fUST_20251010
["ID","MTS","AMOUNT","RATE_DAILY","PERIOD"]
[390442323,1760046649927,-500.0,0.00017502,2]
[390442324,1760046649937,-500.0,0.00017502,2]
[390442325,1760046649946,-200.38484859,0.00017502,2]
[390442326,1760046649955,-500.0,0.00017502,2]
[390442327,1760046649965,-500.0,0.00017502,2]
[390442328,1760046649974,-500.0,0.00017502,2]
[390442329,1760046649984,-151.0,0.00017502,2]
[390442330,1760046649994,-286.371093,0.00017502,2]
[390442331,1760046650004,-151.0,0.00017502,2]
[390442332,1760046650013,-184.974954,0.00017502,2]
[390442333,1760046650023,-215.06514168,0.00017533,2]
[390442334,1760046650033,-500.0,0.00017533,2]
[390442335,1760046650043,-500.0,0.00017534,2]
[390442336,1760046650053,-257.31806691,0.00017534,2]
[390442352,1760046650730,-500.0,0.00016986,2]
[390442353,1760046650740,-500.0,0.0001726,2]
[390442354,1760046650749,-500.0,0.0001726,2]
[390442355,1760046650758,-242.68193309,0.00017534,2]
[390442356,1760046650768,-500.0,0.00017534,2]
[390442357,1760046650777,-517.68,0.00017534,2]
[390442358,1760046650786,-500.0,0.00017534,2]
[390442359,1760046650795,-500.0,0.00017534,2]
[390442360,1760046650804,-500.0,0.00017534,2]
[390442361,1760046650814,-500.0,0.00017534,2]
[390442362,1760046650823,-500.0,0.00017534,2]
[390442363,1760046650832,-500.0,0.00017534,2]
[390442364,1760046650842,-1615.31,0.00017534,2]
[390442365,1760046650851,-254.66,0.00017534,2]
[390442366,1760046650860,-151.0,0.00017534,2]
[390442367,1760046650870,-1542.96,0.00017534,2]
[390442368,1760046650880,-151.0,0.00017534,2]
[390442369,1760046650889,-151.0,0.00017534,2]
[390442370,1760046650898,-500.0,0.00017534,2]
[390442371,1760046650907,-795.47,0.00017534,2]
[390442372,1760046650916,-151.0,0.00017534,2]
[390442373,1760046650925,-708.16,0.00017534,2]
[390442374,1760046650934,-500.0,0.00017534,2]
[390442375,1760046650944,-500.0,0.00017534,2]
[390442376,1760046650953,-500.0,0.00017534,2]
[390442377,1760046650962,-500.0,0.00017534,2]
[390442378,1760046650971,-151.0,0.00017534,2]
[390442379,1760046650980,-513.6,0.00017534,2]
[390442380,1760046650989,-500.0,0.00017534,2]
[390442381,1760046650999,-745.69,0.00017534,2]
[390442382,1760046651008,-500.0,0.00017534,2]
[390442383,1760046651018,-500.0,0.00017534,2]
[390442384,1760046651027,-500.0,0.00017534,2]
[390442385,1760046651036,-411.79144644,0.00017534,2]
[390442386,1760046651046,-500.0,0.00017534,2]
[390442387,1760046651055,-2506.61,0.00017534,2]
[390442388,1760046651065,-300.0,0.00017534,2]
[390442389,1760046651075,-500.0,0.00017534,2]
[390442390,1760046651085,-958.27,0.00017534,2]
[390442391,1760046651095,-500.0,0.00017534,2]
[390442392,1760046651105,-5586.33201926,0.00017534,2]
[390442393,1760046651118,-967.89798074,0.00017534,2]
[390442394,1760046651129,-5671.85,0.00017534,2]
[390442395,1760046651139,-810.45,0.00017534,2]
[390442396,1760046651149,-1161.07,0.00017534,2]
[390442397,1760046651158,-566.68,0.00017534,2]
[390442398,1760046651168,-500.0,0.00017534,2]
[390442399,1760046651181,-658.14,0.00017534,2]
[390442400,1760046651191,-690.71,0.00017534,2]
[390442401,1760046651200,-813.58,0.00017534,2]
[390442402,1760046651209,-166.1205906,0.00017534,2]
[390442403,1760046651232,-1410.61891812,0.0001696,2]
[390442404,1760046651242,-1645.6294094,0.00017534,2]
[390442405,1760046651254,-577.38,0.00017534,2]
[390442406,1760046651265,-1097.44,0.00017534,2]
[390442407,1760046651274,-299.25217084,0.00017534,2]
[390442408,1760046651284,-500.0,0.00017534,2]
[390442409,1760046651294,-1155.62,0.00017534,2]
[390442410,1760046651303,-572.59,0.00017534,2]
[390442411,1760046651313,-720.51,0.00017534,2]
[390442412,1760046651323,-577.88,0.00017534,2]
[390442413,1760046651333,-697.96,0.00017534,2]
[390442414,1760046651342,-500.0,0.00017534,2]
[390442415,1760046651351,-4511.55,0.00017534,2]
[390442416,1760046651361,-2089.19,0.00017534,2]
[390442417,1760046651370,-287.92,0.00017534,2]
[390442418,1760046651380,-527.46,0.00017534,2]
[390442419,1760046651390,-3236.04,0.00017534,2]
[390442420,1760046651400,-2549.17,0.00017534,2]
[390442421,1760046651410,-566.1,0.00017534,2]
[390442422,1760046651419,-500.0,0.00017534,2]
[390442423,1760046651428,-500.0,0.00017534,2]
[390442424,1760046651439,-5446.92,0.00017534,2]
[390442425,1760046651449,-500.0,0.00017534,2]
[390442426,1760046651458,-500.0,0.00017534,2]
[390442427,1760046651468,-606.06,0.00017534,2]
[390442428,1760046651477,-689.54,0.00017534,2]
[390442429,1760046651486,-613.07,0.00017534,2]
[390442430,1760046651496,-500.0,0.00017534,2]
[390442431,1760046651506,-740.96,0.00017534,2]
[390442432,1760046651515,-2215.06,0.00017534,2]
[390442433,1760046651530,-879.17,0.00017534,2]
[390442434,1760046651540,-500.0,0.00017534,2]
[390442435,1760046651549,-755.62,0.00017534,2]
[390442436,1760046651558,-1191.97,0.00017534,2]
[390442437,1760046651568,-500.0,0.00017534,2]
[390442438,1760046651578,-793.19,0.00017534,2]
[390442439,1760046651587,-2184.18,0.00017534,2]
[390442440,1760046651596,-1009.28,0.00017534,2]
[390442441,1760046651606,-500.0,0.00017534,2]
[390442442,1760046651615,-500.0,0.00017534,2]
[390442443,1760046651625,-500.0,0.00017534,2]
[390442444,1760046651634,-5461.09,0.00017534,2]
[390442445,1760046651644,-867.4,0.00017534,2]
[390442446,1760046651653,-593.88,0.00017534,2]
[390442447,1760046651663,-375.32589865,0.00017534,2]
[390442448,1760046651869,-500.0,0.00016438,2]
[390442449,1760046651879,-150.0,0.00016996,2]
[390442450,1760046651888,-594.05410135,0.00017534,2]
[390442451,1760046651897,-1029.21,0.00017534,2]
[390442452,1760046651907,-689.08,0.00017534,2]
[390442453,1760046651916,-500.0,0.00017534,2]
[390442454,1760046651925,-543.03,0.00017534,2]
[390442455,1760046651934,-672.27,0.00017534,2]
[390442456,1760046651944,-2843.57,0.00017534,2]
[390442457,1760046651953,-1530.93,0.00017534,2]
[390442458,1760046651961,-500.0,0.00017534,2]
[390442459,1760046651971,-682.02,0.00017534,2]
[390442460,1760046651980,-1849.93,0.00017534,2]
[390442461,1760046651989,-492.06641522,0.00017534,2]
[390442462,1760046651999,-2105.49,0.00017534,2]
[390442463,1760046652008,-500.0,0.00017534,2]
[390442464,1760046652017,-50.68904852,0.00017534,2]
[390442465,1760046652029,-449.31095148,0.00017534,2]
[390442467,1760046652039,-92.77955461,0.00017534,2]
[390442469,1760046652051,-407.22044539,0.00017534,2]
[390442471,1760046652060,-904.53,0.00017534,2]
[390442473,1760046652070,-500.0,0.00017534,2]
[390442475,1760046652079,-197.38291122,0.00017534,2]
[390442477,1760046652088,-1576.0,0.00017536,2]
[390442479,1760046652098,-250.0,0.00017622,2]
[390442481,1760046652108,-1576.0,0.00017624,2]
[390442483,1760046652117,-600.0,0.0001763,2]
[390442485,1760046652126,-1161.83041393,0.000177,2]
[390442486,1760046652135,-500.0,0.00017708,2]
[390442488,1760046652144,-176.96952833,0.00017708,2]
[390442490,1760046652154,-698.02776747,0.00017708,2]
[390442491,1760046652163,-377.9,0.00017798,3]
[390442492,1760046652173,-500.0,0.00017808,2]
[390442493,1760046652185,-151.0,0.00017808,2]
[390442494,1760046652194,-500.0,0.00017808,2]
[390442495,1760046652204,-500.0,0.00017808,2]
[390442496,1760046652213,-517.68,0.00017808,2]
[390442497,1760046652222,-500.0,0.00017808,2]
[390442498,1760046652232,-500.0,0.00017808,2]
[390442499,1760046652241,-500.0,0.00017808,2]
[390442500,1760046652251,-1615.31,0.00017808,2]
[390442501,1760046652260,-1542.96,0.00017808,2]
[390442502,1760046652269,-500.0,0.00017808,2]
[390442503,1760046652278,-795.47,0.00017808,2]
[390442504,1760046652287,-500.0,0.00017808,2]
[390442505,1760046652297,-500.0,0.00017808,2]
[390442506,1760046652307,-151.0,0.00017808,2]
[390442507,1760046652316,-708.16,0.00017808,2]
[390442508,1760046652326,-500.0,0.00017808,2]
[390442509,1760046652335,-500.0,0.00017808,2]
[390442510,1760046652345,-500.0,0.00017808,2]
[390442511,1760046652354,-500.0,0.00017808,2]
[390442512,1760046652364,-500.0,0.00017808,2]
[390442513,1760046652373,-500.0,0.00017808,2]
[390442514,1760046652382,-151.0,0.00017808,2]
[390442515,1760046652391,-151.0,0.00017808,2]
[390442516,1760046652401,-500.0,0.00017808,2]
[390442517,1760046652410,-151.0,0.00017808,2]
[390442518,1760046652419,-14.15329163,0.00017808,2]
[390442519,1760046652431,-136.84670837,0.00017808,2]
[390442520,1760046652440,-151.0,0.00017808,2]
[390442521,1760046652449,-80.78370436,0.00017808,2]
[390442522,1760046652460,-70.21629564,0.00017808,2]
[390442523,1760046652469,-513.6,0.00017808,2]
[390442524,1760046652479,-500.0,0.00017808,2]
[390442525,1760046652488,-316.55247556,0.00017808,2]
[390442526,1760046652500,-429.13752444,0.00017808,2]
[390442527,1760046652509,-500.0,0.00017808,2]
[390442528,1760046652518,-500.0,0.00017808,2]
[390442529,1760046652527,-451.69946084,0.00017808,2]
[390442530,1760046652788,-500.0,0.00016438,2]
[390442531,1760046652798,-500.0,0.00016438,2]
[390442532,1760046652807,-500.0,0.00016712,2]
[390442533,1760046652817,-48.30053916,0.00017808,2]
[390442534,1760046652826,-500.0,0.00017808,2]
[390442535,1760046652836,-500.0,0.00017808,2]
[390442536,1760046652844,-500.0,0.00017808,2]
[390442537,1760046652853,-2506.61,0.00017808,2]
[390442538,1760046652863,-151.0,0.00017808,2]
[390442539,1760046652872,-500.0,0.00017808,2]
[390442540,1760046652881,-198.0,0.00017808,2]
[390442541,1760046652890,-500.0,0.00017808,2]
[390442542,1760046652900,-500.0,0.00017808,2]
[390442543,1760046652909,-500.0,0.00017808,2]
[390442544,1760046652918,-958.27,0.00017808,2]
[390442545,1760046652927,-500.0,0.00017808,2]
[390442546,1760046652937,-6554.23,0.00017808,2]
[390442547,1760046652948,-5671.85,0.00017808,2]
[390442548,1760046652958,-810.45,0.00017808,2]
[390442549,1760046652967,-1161.07,0.00017808,2]
[390442550,1760046652976,-566.68,0.00017808,2]
[390442551,1760046652985,-251.906144,0.00017808,2]
[390442552,1760046652994,-151.0,0.00017808,2]
[390442553,1760046653003,-600.76683046,0.00017808,2]
[390442554,1760046653012,-690.71,0.00017808,2]
[390442555,1760046653022,-813.58,0.00017808,2]
[390442556,1760046653031,-1811.75,0.00017808,2]
[390442557,1760046653040,-577.38,0.00017808,2]
[390442558,1760046653050,-1097.44,0.00017808,2]
[390442559,1760046653059,-151.0,0.00017808,2]
[390442560,1760046653068,-500.0,0.00017808,2]
[390442561,1760046653077,-1155.62,0.00017808,2]
[390442562,1760046653086,-572.59,0.00017808,2]
[390442563,1760046653096,-720.51,0.00017808,2]
[390442564,1760046653105,-577.88,0.00017808,2]
[390442565,1760046653114,-697.96,0.00017808,2]
[390442566,1760046653124,-4511.55,0.00017808,2]
[390442567,1760046653133,-2089.19,0.00017808,2]
[390442568,1760046653143,-527.46,0.00017808,2]
[390442569,1760046653152,-3236.04,0.00017808,2]
[390442570,1760046653162,-2549.17,0.00017808,2]
[390442571,1760046653172,-566.1,0.00017808,2]
[390442572,1760046653185,-500.0,0.00017808,2]
[390442573,1760046653194,-151.0,0.00017808,2]
[390442574,1760046653204,-500.0,0.00017808,2]
[390442575,1760046653214,-287.94012382,0.00017808,2]
[390442576,1760046653225,-5446.92,0.00017808,2]
[390442577,1760046653234,-500.0,0.00017808,2]
[390442578,1760046653243,-500.0,0.00017808,2]
[390442579,1760046653254,-606.06,0.00017808,2]
[390442580,1760046653263,-689.54,0.00017808,2]
[390442581,1760046653271,-613.07,0.00017808,2]
[390442582,1760046653280,-387.63866428,0.00017808,2]
[390442583,1760046653289,-740.96,0.00017808,2]
[390442584,1760046653298,-879.17,0.00017808,2]
[390442585,1760046653307,-2215.06,0.00017808,2]
[390442586,1760046653316,-500.0,0.00017808,2]
[390442587,1760046653326,-755.62,0.00017808,2]
[390442588,1760046653335,-1191.97,0.00017808,2]
[390442589,1760046653344,-500.0,0.00017808,2]
[390442590,1760046653354,-151.0,0.00017808,2]
[390442591,1760046653363,-793.19,0.00017808,2]
[390442592,1760046653372,-2184.18,0.00017808,2]
[390442593,1760046653381,-1009.28,0.00017808,2]
[390442594,1760046653390,-151.0,0.00017808,2]
[390442595,1760046653399,-500.0,0.00017808,2]
[390442596,1760046653408,-500.0,0.00017808,2]
[390442597,1760046653417,-151.0,0.00017808,2]
[390442598,1760046653427,-279.607363,0.00017808,2]
[390442599,1760046653436,-500.0,0.00017808,2]
[390442600,1760046653445,-279.607363,0.00017808,2]
[390442601,1760046653454,-279.607363,0.00017808,2]
[390442602,1760046653463,-279.607363,0.00017808,2]
[390442603,1760046653471,-5461.09,0.00017808,2]
[390442604,1760046653480,-867.4,0.00017808,2]
[390442605,1760046653489,-593.88,0.00017808,2]
[390442606,1760046653498,-969.38,0.00017808,2]
[390442607,1760046653508,-1029.21,0.00017808,2]
[390442608,1760046653517,-689.08,0.00017808,2]
[390442609,1760046653526,-500.0,0.00017808,2]
[390442610,1760046653535,-600.0,0.00017808,2]
[390442611,1760046653544,-543.03,0.00017808,2]
[390442612,1760046653553,-151.0,0.00017808,2]
[390442613,1760046653562,-151.0,0.00017808,2]
[390442614,1760046653571,-672.27,0.00017808,2]
[390442615,1760046653579,-151.0,0.00017808,2]
[390442616,1760046653588,-151.0,0.00017808,2]
[390442617,1760046653598,-151.0,0.00017808,2]
[390442618,1760046653607,-2843.57,0.00017808,2]
[390442619,1760046653617,-1530.93,0.00017808,2]
[390442620,1760046653627,-682.02,0.00017808,2]
[390442621,1760046653636,-1849.93,0.00017808,2]
[390442622,1760046653645,-151.0,0.00017808,2]
[390442623,1760046653654,-2105.49,0.00017808,2]
[390442624,1760046653664,-151.0,0.00017808,2]
[390442625,1760046653673,-500.0,0.00017808,2]
[390442626,1760046653682,-500.0,0.00017808,2]
[390442627,1760046653691,-904.53,0.00017808,2]
[390442628,1760046653700,-500.0,0.00017808,2]
[390442629,1760046653710,-500.0,0.00017808,2]
[390442630,1760046653719,-151.0,0.00017808,2]
[390442631,1760046653727,-420.0,0.00017855,2]
[390442632,1760046653737,-1161.83041393,0.000179,2]
[390442633,1760046653746,-1680.0,0.00017943,2]
[390442634,1760046653755,-500.0,0.00017982,2]
[390442635,1760046653764,-692.46,0.00017986,2]
[390442636,1760046653774,-1000.0,0.00017995,2]
[390442637,1760046653783,-1000.0,0.00017995,2]
[390442638,1760046653791,-1000.0,0.00017995,2]
[390442639,1760046653802,-1000.0,0.00017995,2]
[390442640,1760046653811,-1000.0,0.00017995,2]
[390442641,1760046653820,-453.40714898,0.00017995,2]
[390442642,1760046653829,-1000.0,0.00017995,2]
[390442643,1760046653838,-1000.0,0.00017995,2]
[390442644,1760046653847,-1000.0,0.00017995,2]
[390442645,1760046653856,-1000.0,0.00017995,2]
[390442646,1760046653865,-1000.0,0.00017995,2]
[390442647,1760046653874,-1000.0,0.00017995,2]
[390442648,1760046653884,-1000.0,0.00017995,2]
[390442649,1760046653893,-1000.0,0.00017995,2]
[390442650,1760046653903,-1006.51789788,0.00017995,2]
[390442651,1760046653911,-1000.0,0.00017995,2]
[390442652,1760046653920,-1000.0,0.00017995,2]
[390442653,1760046653930,-1000.0,0.00017995,2]
[390442654,1760046653939,-1000.0,0.00017995,2]
[390442655,1760046653948,-1000.0,0.00017995,2]
[390442656,1760046653957,-1000.0,0.00017995,2]
[390442657,1760046653967,-670.04564756,0.00017995,2]
[390442658,1760046653991,-329.95435244,0.00017995,2]
[390442659,1760046654001,-500.67643969,0.00017995,2]
[390442660,1760046654170,-1000.0,0.00017995,2]
[390442661,1760046654186,-407.84194646,0.00018,2]
[390442662,1760046654201,-23419.22211973,0.00018,2]
[390442663,1760046654213,-1592.73378879,0.00018,2]
[390442664,1760046654225,-17563.29844793,0.00018,2]
[390442665,1760046654235,-9623.69994867,0.00018,2]
[390442666,1760046654245,-6946.0,0.00018,2]
[390442667,1760046654254,-5004.05127152,0.00018,2]
[390442668,1760046654264,-1000.0,0.00018,2]
[390442669,1760046654273,-499226.03699634,0.00018,2]
[390442670,1760046654284,-1581.34479366,0.00018,2]
[390442671,1760046654300,-735.04964314,0.00018,2]
[390442672,1760046679987,56140.4206634,0.00023288,30]
[390442673,1760046730889,250.8,0.0001652,14]
[390442674,1760046817491,3000.0,0.00024,30]
[390442675,1760046954233,246.9463583,0.0001652,14]
[390442676,1760047015461,50532.0,0.00024,30]
[390442689,1760047551608,245.873403,0.00015432,2]
[390442737,1760047832567,-250.8,0.00016238,2]
[390442850,1760047838351,-45.89429069,0.00016238,2]
[390442852,1760047838363,-218.15572749,0.00016336,2]
[390442863,1760047838540,-267.27800351,0.00016336,2]
[390442864,1760047838550,-389.0,0.00016336,2]
[390442865,1760047838559,-287.0,0.00016336,2]
[390442866,1760047838569,-300.0,0.00016336,2]
[390442867,1760047838579,-1200.0,0.00016336,2]
[390442868,1760047838589,-310.46565142,0.00016337,2]
[390442869,1760047838599,-416.45930335,0.00016337,2]
[390442871,1760047838609,-190.29118406,0.00016337,2]
[390442872,1760047838619,-500.0,0.00016337,2]
[390442873,1760047838628,-500.0,0.00016337,2]
[390442874,1760047838637,-500.0,0.00016337,2]
[390442875,1760047838647,-500.0,0.00016337,2]
[390442876,1760047839003,-614.97583119,0.00016337,2]
[390442877,1760047839027,-500.0,0.00016337,2]
[390442878,1760047839040,-552.13022472,0.00016338,2]
[390442879,1760047839049,-7617.53900212,0.00016338,2]
[390442880,1760047839061,-13232.07343135,0.00016338,2]
[390442963,1760047840642,-12717.11845694,0.00016338,2]
[390443045,1760047845136,-3169.57007987,0.00016338,2]
[390443046,1760047845198,-302.0,0.00016338,2]
[390443099,1760047846678,-1799.82798,0.00016338,2]
[390443892,1760048208397,1000.0,0.00028767,120]
[390443893,1760048216331,1065.0,0.00028767,120]
[390443895,1760048297271,1500.0,0.00015,2]
[390443900,1760048459901,666.0,0.00015338,2]
[390443901,1760048542440,223.5381891,0.00015288,2]
[390443902,1760048557268,337.0,0.00021784,120]
[390443903,1760048558613,337.0,0.00022874,120]
[390443904,1760048560044,337.0,0.00024017,120]
[390443905,1760048561320,337.0,0.00025218,120]
[390443906,1760048562990,337.0,0.00026479,120]
[390443907,1760048564397,337.0,0.00027803,120]
[390443909,1760048713491,5000.0,0.0001652,14]
[390443915,1760048936278,4840.75878426,0.00015571,2]
[390443916,1760048936302,159.24121574,0.00015571,2]
[390443917,1760048970259,5000.0,0.00015571,2]
[390443919,1760048995294,3575.86693587,0.00015571,2]
[390444200,1760049038779,-5000.0,0.00015731,2]
[390444201,1760049038789,-475.72505638,0.0001589,2]
[390444202,1760049038799,-500.0,0.0001589,2]
[390444203,1760049038809,-267.489,0.00016109,2]
[390444204,1760049038819,-1200.0,0.00016235,2]
[390444205,1760049038828,-300.0,0.00016236,2]
[390444206,1760049038837,-300.0,0.00016236,2]
[390444207,1760049038846,-236.0,0.00016236,2]
[390444208,1760049038856,-179.44175902,0.00016237,2]
[390444209,1760049038865,-259.60750438,0.00016238,2]
[390444210,1760049038874,-29259.70534957,0.00016238,2]
[390444211,1760049038884,-166.0,0.00016338,2]
[390444212,1760049038893,-329.0,0.00016338,2]
[390444213,1760049038902,-176.51579718,0.00016338,2]
[390444214,1760049038912,-166.0,0.00016338,2]
[390444216,1760049038922,-166.0,0.00016338,2]
[390444218,1760049038932,-166.0,0.00016338,2]
[390444220,1760049038943,-767.60000199,0.00016338,2]
[390444222,1760049038953,-500.0,0.00016338,2]
[390444223,1760049038963,-500.0,0.00016338,2]
[390444224,1760049038973,-317.60735007,0.00016437,2]
[390444225,1760049038983,-184.920317,0.00016437,2]
[390444226,1760049038992,-500.0,0.00016438,2]
[390444227,1760049039002,-500.0,0.00016438,2]
[390444228,1760049039011,-500.0,0.00016438,2]
[390444229,1760049039020,-445.03544417,0.00016438,2]
[390444230,1760049039030,-500.0,0.00016438,2]
[390444231,1760049039044,-500.0,0.00016438,2]
[390444232,1760049039054,-500.0,0.00016438,2]
[390444233,1760049039063,-500.0,0.00016438,2]
[390444234,1760049039073,-500.0,0.00016438,2]
[390444235,1760049039082,-500.0,0.00016438,2]
[390444236,1760049039091,-500.0,0.00016438,2]
[390444237,1760049039101,-500.0,0.00016438,2]
[390444238,1760049039110,-500.0,0.00016438,2]
[390444239,1760049039119,-635.01476144,0.00016438,2]
[390444240,1760049039128,-500.0,0.00016438,2]
[390444241,1760049039137,-500.0,0.00016438,2]
[390444242,1760049039147,-500.0,0.00016438,2]
[390444243,1760049039159,-520.0,0.00016438,3]
[390444244,1760049039168,-500.0,0.00016438,2]
[390444245,1760049039178,-500.0,0.00016438,2]
[390444246,1760049039187,-500.0,0.00016438,2]
[390444247,1760049039196,-500.0,0.00016438,2]
[390444248,1760049039205,-500.0,0.00016438,2]
[390444249,1760049039214,-500.0,0.00016438,2]
[390444250,1760049039224,-500.0,0.00016438,2]
[390444251,1760049039233,-500.0,0.00016438,2]
[390444252,1760049039242,-500.0,0.00016438,2]
[390444253,1760049039251,-500.0,0.00016438,2]
[390444254,1760049039260,-500.0,0.00016438,2]
[390444255,1760049039270,-500.0,0.00016438,2]
[390444256,1760049039279,-500.0,0.00016438,2]
[390444257,1760049039288,-500.0,0.00016438,2]
[390444258,1760049039298,-500.0,0.00016438,2]
[390444259,1760049039307,-500.0,0.00016438,2]
[390444260,1760049039316,-500.0,0.00016438,2]
[390444261,1760049039325,-500.0,0.00016438,2]
[390444262,1760049039334,-500.0,0.00016438,2]
[390444263,1760049039344,-500.0,0.00016438,2]
[390444264,1760049039353,-500.0,0.00016438,2]
[390444265,1760049039362,-500.0,0.00016438,2]
[390444266,1760049039371,-500.0,0.00016438,2]
[390444267,1760049039380,-500.0,0.00016438,2]
[390444268,1760049039389,-500.0,0.00016438,2]
[390444269,1760049039398,-500.0,0.00016438,2]
[390444270,1760049039408,-500.0,0.00016438,2]
[390444271,1760049039417,-500.0,0.00016438,2]
[390444272,1760049039426,-500.0,0.00016438,2]
[390444273,1760049039435,-500.0,0.00016438,2]
[390444274,1760049039445,-500.0,0.00016438,2]
[390444275,1760049039454,-500.0,0.00016438,2]
[390444276,1760049039463,-500.0,0.00016438,2]
[390444277,1760049039472,-500.0,0.00016438,2]
[390444278,1760049039482,-500.0,0.00016438,2]
[390444279,1760049039491,-500.0,0.00016438,2]
[390444280,1760049039500,-500.0,0.00016438,2]
[390444281,1760049039509,-528.89015215,0.00016438,2]
[390444282,1760049039518,-500.0,0.00016438,2]
[390444283,1760049039527,-500.0,0.00016438,2]
[390444284,1760049039536,-500.0,0.00016438,2]
[390444285,1760049039546,-500.0,0.00016438,2]
[390444286,1760049039555,-500.0,0.00016438,2]
[390444287,1760049039565,-500.0,0.00016438,2]
[390444288,1760049039574,-500.0,0.00016438,2]
[390444289,1760049039583,-500.0,0.00016438,2]
[390444290,1760049039592,-500.0,0.00016438,2]
[390444291,1760049039602,-500.0,0.00016438,2]
[390444292,1760049039611,-500.0,0.00016438,2]
[390444293,1760049039621,-500.0,0.00016438,2]
[390444294,1760049039630,-500.0,0.00016438,2]
[390444295,1760049039639,-500.0,0.00016438,2]
[390444296,1760049039649,-500.0,0.00016438,2]
[390444297,1760049039659,-157.14405202,0.00016438,2]
[390444298,1760049039668,-500.0,0.00016438,2]
[390444299,1760049039677,-500.0,0.00016438,2]
[390444300,1760049039687,-500.0,0.00016438,2]
[390444301,1760049039696,-500.0,0.00016438,2]
[390444302,1760049039705,-500.0,0.00016438,2]
[390444303,1760049039714,-500.0,0.00016438,2]
[390444304,1760049039723,-500.0,0.00016438,2]
[390444305,1760049039732,-500.0,0.00016438,2]
[390444306,1760049039742,-600.0,0.00016438,2]
[390444307,1760049039756,-500.0,0.00016438,2]
[390444308,1760049039765,-500.0,0.00016438,2]
[390444309,1760049039785,-500.0,0.00016438,2]
[390444310,1760049039798,-500.0,0.00016438,2]
[390444311,1760049039808,-500.0,0.00016438,2]
[390444312,1760049039817,-500.0,0.00016438,2]
[390444313,1760049039827,-500.0,0.00016438,2]
[390444314,1760049039837,-500.0,0.00016438,2]
[390444315,1760049039847,-500.0,0.00016438,2]
[390444316,1760049039856,-501.10294954,0.00016438,2]
[390444317,1760049039866,-357.56067118,0.00016438,2]
[390444318,1760049039875,-500.0,0.00016438,2]
[390444319,1760049039885,-530.14,0.00016438,2]
[390444320,1760049039895,-500.0,0.00016438,2]
[390444321,1760049039905,-500.0,0.00016438,2]
[390444322,1760049039915,-500.0,0.00016438,2]
[390444323,1760049039924,-500.0,0.00016438,2]
[390444324,1760049039934,-500.0,0.00016438,2]
[390444325,1760049039943,-500.0,0.00016438,2]
[390444326,1760049039953,-500.0,0.00016438,2]
[390444327,1760049039962,-500.0,0.00016438,2]
[390444328,1760049039972,-500.0,0.00016438,2]
[390444329,1760049039982,-500.0,0.00016438,2]
[390444330,1760049039992,-500.0,0.00016438,2]
[390444331,1760049040002,-500.0,0.00016438,2]
[390444333,1760049040011,-500.0,0.00016438,2]
[390444334,1760049040021,-500.0,0.00016438,2]
[390444335,1760049040031,-603.67,0.00016438,2]
[390444336,1760049040040,-640.46333275,0.00016438,2]